[Event "January 2 Early 2024"]
[Site "https://www.chess.com"]
[Date "2024.01.02"]
[Round "2"]
[White "Slavin, Alexey"]
[Black "Tarhan, Adar"]
[Result "0-1"]
[Board "117"]
[TimeControl "180+1"]
[WhiteFideId "24104388"]
[BlackFideId "34544712"]
[WhiteElo "2250"]
[BlackElo "2704"]
[WhiteTeam "RUS"]
[BlackTeam "TUR"]
[WhiteClock "0:00:01"]
[BlackClock "0:00:11"]

1. e4 {[%clk 0:02:59]}  g6 {[%clk 0:03:00]} 2. d4 {[%clk 0:02:58]}  Bg7 {[%clk 0:03:00]} 3. Nc3 {[%clk 0:02:59]}  d6 {[%clk 0:02:59]} 4. Be3 {[%clk 0:02:58]}  a6 {[%clk 0:02:59]} 5. Qd2 {[%clk 0:02:58]}  b5 {[%clk 0:02:59]} 6. a3 {[%clk 0:02:58]}  Bb7 {[%clk 0:02:58]} 7. f3 {[%clk 0:02:58]}  Nd7 {[%clk 0:02:58]} 8. Bd3 {[%clk 0:02:57]}  Rc8 {[%clk 0:02:58]} 9. Nh3 {[%clk 0:02:57]}  c5 {[%clk 0:02:58]} 10. d5 {[%clk 0:02:51]}  Ne5 {[%clk 0:02:55]} 11. Be2 {[%clk 0:02:49]}  h5 {[%clk 0:02:53]} 12. O-O {[%clk 0:02:47]}  Nf6 {[%clk 0:02:44]} 13. Rae1 {[%clk 0:02:40]}  Rc7 {[%clk 0:02:26]} 14. Nf2 {[%clk 0:02:39]}  Bc8 {[%clk 0:02:25]} 15. h3 {[%clk 0:02:39]}  h4 {[%clk 0:02:22]} 16. b3 {[%clk 0:02:32]}  Nh5 {[%clk 0:02:22]} 17. f4 {[%clk 0:02:16]}  Nd7 {[%clk 0:02:20]} 18. Bxh5 {[%clk 0:02:12]}  Rxh5 {[%clk 0:02:19]} 19. Ne2 {[%clk 0:02:11]}  Kf8 {[%clk 0:02:11]} 20. c4 {[%clk 0:02:10]}  Kg8 {[%clk 0:02:10]} 21. Nd3 {[%clk 0:01:56]}  bxc4 {[%clk 0:02:09]} 22. bxc4 {[%clk 0:01:56]}  Rb7 {[%clk 0:02:10]} 23. Rb1 {[%clk 0:01:54]}  Qc7 {[%clk 0:02:09]} 24. Kh2 {[%clk 0:01:34]}  f5 {[%clk 0:02:02]} 25. exf5 {[%clk 0:01:24]}  Rxf5 {[%clk 0:02:00]} 26. Ng1 {[%clk 0:01:22]}  Nf6 {[%clk 0:01:59]} 27. Nf3 {[%clk 0:01:21]}  Ne4 {[%clk 0:01:59]} 28. Qc2 {[%clk 0:01:19]}  Ng3 {[%clk 0:01:53]} 29. Rfe1 {[%clk 0:01:14]}  Bf6 {[%clk 0:01:53]} 30. Bf2 {[%clk 0:01:06]}  Rxb1 {[%clk 0:01:51]} 31. Rxb1 {[%clk 0:01:05]}  e6 {[%clk 0:01:51]} 32. Nxh4 {[%clk 0:00:48]}  Bxh4 {[%clk 0:01:50]} 33. Bxg3 {[%clk 0:00:49]}  Bxg3+ {[%clk 0:01:50]} 34. Kxg3 {[%clk 0:00:50]}  exd5 {[%clk 0:01:50]} 35. cxd5 {[%clk 0:00:47]}  Rxd5 {[%clk 0:01:48]} 36. Nb4 {[%clk 0:00:22]}  Rf5 {[%clk 0:01:38]} 37. Qc4+ {[%clk 0:00:14]}  Qf7 {[%clk 0:01:35]} 38. Qxf7+ {[%clk 0:00:10]}  Kxf7 {[%clk 0:01:36]} 39. Nd3 {[%clk 0:00:10]}  c4 {[%clk 0:01:36]} 40. Nf2 {[%clk 0:00:10]}  d5 {[%clk 0:01:30]} 41. Ng4 {[%clk 0:00:10]}  d4 {[%clk 0:01:30]} 42. Ne5+ {[%clk 0:00:10]}  Rxe5 {[%clk 0:01:30]} 43. fxe5 {[%clk 0:00:10]}  c3 {[%clk 0:01:30]} 44. Kf4 {[%clk 0:00:07]}  d3 {[%clk 0:01:28]} 45. Ke3 {[%clk 0:00:06]}  Bf5 {[%clk 0:01:19]} 46. g4 {[%clk 0:00:06]}  c2 {[%clk 0:00:52]} 47. Rc1 {[%clk 0:00:05]}  Be4 {[%clk 0:00:50]} 48. Rf1+ {[%clk 0:00:04]}  Ke6 {[%clk 0:00:49]} 49. Kd2 {[%clk 0:00:05]}  Kxe5 {[%clk 0:00:49]} 50. Re1 {[%clk 0:00:03]}  Kd4 {[%clk 0:00:50]} 51. Rf1 {[%clk 0:00:02]}  Bg2 {[%clk 0:00:45]} 52. Rf6 {[%clk 0:00:02]}  g5 {[%clk 0:00:37]} 53. Rf5 {[%clk 0:00:01]}  Bxh3 {[%clk 0:00:16]} 54. Rxg5 {[%clk 0:00:02]}  Bg2 {[%clk 0:00:15]} 55. Ra5 {[%clk 0:00:03]}  c1=Q+ {[%clk 0:00:13]} 56. Kxc1 {[%clk 0:00:03]}  Ke3 {[%clk 0:00:13]} 57. Re5+ {[%clk 0:00:01]}  Kd4 {[%clk 0:00:11]} 58. Re8 {[%clk 0:00:01]}  Bc6 {[%clk 0:00:10]} 59. Kd2 {[%clk 0:00:01]}  Bxe8 {[%clk 0:00:10]} 60. g5 {[%clk 0:00:01]}  Bg6 {[%clk 0:00:11]} 61. a4 {[%clk 0:00:01]}  a5 {[%clk 0:00:11]} 62. Kd1 {[%clk 0:00:01]}  Kc3 {[%clk 0:00:10]} 63. Ke1 {[%clk 0:00:01]}  d2+ {[%clk 0:00:11]} 64. Kd1 {[%clk 0:00:01]}  Bh5# {[%clk 0:00:11]} 0-1

[Event "January 2 Early 2024"]
[Site "https://www.chess.com"]
[Date "2024.01.02"]
[Round "2"]
[White "Mindlin, Alon"]
[Black "Travadon, Loic"]
[Result "0-1"]
[Board "119"]
[TimeControl "180+1"]
[WhiteFideId "2800071"]
[BlackFideId "26092131"]
[WhiteElo "2702"]
[BlackElo "2241"]
[WhiteTeam "ISR"]
[BlackTeam "FRA"]
[WhiteClock "0:00:55"]
[BlackClock "0:00:36"]

1. d4 {[%clk 0:03:00]}  Nf6 {[%clk 0:02:59]} 2. c4 {[%clk 0:03:01]}  e6 {[%clk 0:02:58]} 3. Nc3 {[%clk 0:03:00]}  d5 {[%clk 0:02:57]} 4. Nf3 {[%clk 0:03:00]}  c6 {[%clk 0:02:56]} 5. Bg5 {[%clk 0:02:59]}  Nbd7 {[%clk 0:02:56]} 6. e3 {[%clk 0:02:59]}  dxc4 {[%clk 0:02:55]} 7. Bxc4 {[%clk 0:02:59]}  b5 {[%clk 0:02:55]} 8. Bb3 {[%clk 0:02:55]}  Be7 {[%clk 0:02:23]} 9. O-O {[%clk 0:02:55]}  Bb7 {[%clk 0:02:19]} 10. Rc1 {[%clk 0:02:54]}  O-O {[%clk 0:02:14]} 11. Qe2 {[%clk 0:02:54]}  h6 {[%clk 0:02:09]} 12. Bxf6 {[%clk 0:02:52]}  Nxf6 {[%clk 0:02:08]} 13. Rfd1 {[%clk 0:02:51]}  Rc8 {[%clk 0:02:04]} 14. Ne5 {[%clk 0:02:29]}  a6 {[%clk 0:02:01]} 15. Nd3 {[%clk 0:02:23]}  c5 {[%clk 0:01:57]} 16. Nxc5 {[%clk 0:02:21]}  Bxc5 {[%clk 0:01:52]} 17. dxc5 {[%clk 0:02:22]}  Qe7 {[%clk 0:01:52]} 18. e4 {[%clk 0:02:09]}  Nd7 {[%clk 0:01:40]} 19. Bc2 {[%clk 0:01:58]}  Nxc5 {[%clk 0:01:40]} 20. Qe3 {[%clk 0:01:53]}  b4 {[%clk 0:01:39]} 21. Ne2 {[%clk 0:01:53]}  Rfd8 {[%clk 0:01:35]} 22. Ng3 {[%clk 0:01:53]}  a5 {[%clk 0:01:29]} 23. h3 {[%clk 0:01:52]}  Rxd1+ {[%clk 0:01:26]} 24. Rxd1 {[%clk 0:01:52]}  Qc7 {[%clk 0:01:15]} 25. Nh5 {[%clk 0:01:45]}  Qe5 {[%clk 0:01:06]} 26. Ng3 {[%clk 0:01:33]}  Qxb2 {[%clk 0:01:05]} 27. Bb1 {[%clk 0:01:33]}  Na4 {[%clk 0:01:00]} 28. Rf1 {[%clk 0:01:30]}  Ba6 {[%clk 0:00:50]} 29. Re1 {[%clk 0:01:28]}  Qc3 {[%clk 0:00:44]} 30. Kh2 {[%clk 0:01:20]}  Qxe3 {[%clk 0:00:38]} 31. fxe3 {[%clk 0:01:20]}  Nc3 {[%clk 0:00:39]} 32. Bc2 {[%clk 0:01:16]}  Bb7 {[%clk 0:00:36]} 33. e5 {[%clk 0:01:10]}  Rd8 {[%clk 0:00:36]} 34. Nh5 {[%clk 0:00:55]}  Rd2 {[%clk 0:00:36]} 0-1

[Event "January 2 Early 2024"]
[Site "https://www.chess.com"]
[Date "2024.01.02"]
[Round "2"]
[White "Nazari, Arad"]
[Black "Daurimbetov, Azamat"]
[Result "1-0"]
[Board "120"]
[TimeControl "180+1"]
[WhiteFideId "12577324"]
[BlackFideId "14201950"]
[WhiteElo "2691"]
[BlackElo "2237"]
[WhiteTeam "IRI"]
[BlackTeam "UZB"]
[WhiteClock "0:02:14"]
[BlackClock "0:00:59"]

1. e4 {[%clk 0:03:00]}  e5 {[%clk 0:02:59]} 2. f4 {[%clk 0:02:58]}  d5 {[%clk 0:02:57]} 3. exd5 {[%clk 0:02:58]}  Qxd5 {[%clk 0:02:58]} 4. Nc3 {[%clk 0:02:57]}  Qc5 {[%clk 0:02:51]} 5. Nf3 {[%clk 0:02:56]}  exf4 {[%clk 0:02:42]} 6. d4 {[%clk 0:02:55]}  Qe7+ {[%clk 0:02:14]} 7. Kf2 {[%clk 0:02:53]}  g5 {[%clk 0:02:02]} 8. Bb5+ {[%clk 0:02:51]}  c6 {[%clk 0:01:49]} 9. Re1 {[%clk 0:02:51]}  cxb5 {[%clk 0:01:50]} 10. Nd5 {[%clk 0:02:43]}  Qxe1+ {[%clk 0:01:37]} 11. Qxe1+ {[%clk 0:02:44]}  Kd8 {[%clk 0:01:35]} 12. Nxg5 {[%clk 0:02:44]}  Nh6 {[%clk 0:01:35]} 13. Bxf4 {[%clk 0:02:43]}  Na6 {[%clk 0:01:33]} 14. Qa5+ {[%clk 0:02:27]}  b6 {[%clk 0:01:19]} 15. Nxb6 {[%clk 0:02:27]}  axb6 {[%clk 0:01:20]} 16. Qxb6+ {[%clk 0:02:27]}  Kd7 {[%clk 0:01:18]} 17. Ne4 {[%clk 0:02:22]}  Ng4+ {[%clk 0:01:05]} 18. Kg1 {[%clk 0:02:22]}  f5 {[%clk 0:01:06]} 19. Qxb5+ {[%clk 0:02:16]}  Ke6 {[%clk 0:01:02]} 20. Ng5+ {[%clk 0:02:15]}  Kf6 {[%clk 0:00:59]} 21. Qc6+ {[%clk 0:02:14]} 1-0

[Event "January 2 Early 2024"]
[Site "https://www.chess.com"]
[Date "2024.01.02"]
[Round "2"]
[White "Rose, Felix"]
[Black "Mammadova, Narmin"]
[Result "1-0"]
[Board "121"]
[TimeControl "180+1"]
[WhiteFideId "5105722"]
[BlackFideId "13403710"]
[WhiteElo "2186"]
[BlackElo "2690"]
[WhiteTeam "MEX"]
[BlackTeam "AZE"]
[WhiteClock "0:00:45"]
[BlackClock "0:00:00"]

1. e4 {[%clk 0:02:59]}  c6 {[%clk 0:02:58]} 2. d4 {[%clk 0:03:00]}  d5 {[%clk 0:02:58]} 3. e5 {[%clk 0:03:00]}  Bf5 {[%clk 0:02:58]} 4. h4 {[%clk 0:03:00]}  h5 {[%clk 0:02:57]} 5. Bd3 {[%clk 0:02:58]}  Bxd3 {[%clk 0:02:56]} 6. Qxd3 {[%clk 0:02:59]}  Qa5+ {[%clk 0:02:54]} 7. Nd2 {[%clk 0:02:58]}  Qa6 {[%clk 0:02:54]} 8. c4 {[%clk 0:02:57]}  e6 {[%clk 0:02:52]} 9. Ngf3 {[%clk 0:02:52]}  Nh6 {[%clk 0:02:41]} 10. O-O {[%clk 0:02:51]}  Nf5 {[%clk 0:02:38]} 11. Qc2 {[%clk 0:02:50]}  Nd7 {[%clk 0:02:22]} 12. cxd5 {[%clk 0:02:48]}  cxd5 {[%clk 0:02:22]} 13. Nb3 {[%clk 0:02:34]}  Be7 {[%clk 0:02:18]} 14. g3 {[%clk 0:02:16]}  O-O {[%clk 0:02:15]} 15. Bg5 {[%clk 0:02:16]}  Bxg5 {[%clk 0:02:01]} 16. Nxg5 {[%clk 0:02:15]}  Rac8 {[%clk 0:01:53]} 17. Qd2 {[%clk 0:02:15]}  g6 {[%clk 0:01:41]} 18. Rfc1 {[%clk 0:02:01]}  Kg7 {[%clk 0:01:36]} 19. Kg2 {[%clk 0:01:57]}  b6 {[%clk 0:01:31]} 20. Rc3 {[%clk 0:01:51]}  Rxc3 {[%clk 0:01:28]} 21. Qxc3 {[%clk 0:01:49]}  Rc8 {[%clk 0:01:27]} 22. Qd2 {[%clk 0:01:31]}  Rc4 {[%clk 0:01:08]} 23. Nf3 {[%clk 0:01:30]}  Qc8 {[%clk 0:00:57]} 24. Rc1 {[%clk 0:01:21]}  a5 {[%clk 0:00:54]} 25. Rc3 {[%clk 0:01:17]}  a4 {[%clk 0:00:48]} 26. Nc1 {[%clk 0:01:17]}  b5 {[%clk 0:00:45]} 27. Ne2 {[%clk 0:01:14]}  b4 {[%clk 0:00:37]} 28. Rc1 {[%clk 0:01:11]}  Nb6 {[%clk 0:00:34]} 29. b3 {[%clk 0:01:08]}  Rxc1 {[%clk 0:00:30]} 30. Nxc1 {[%clk 0:01:06]}  axb3 {[%clk 0:00:19]} 31. axb3 {[%clk 0:00:57]}  Qc3 {[%clk 0:00:17]} 32. Nd3 {[%clk 0:00:57]}  Qxd2 {[%clk 0:00:16]} 33. Nxd2 {[%clk 0:00:56]}  Nxd4 {[%clk 0:00:17]} 34. Nxb4 {[%clk 0:00:55]}  f6 {[%clk 0:00:16]} 35. Nd3 {[%clk 0:00:51]}  Nd7 {[%clk 0:00:12]} 36. f4 {[%clk 0:00:48]}  fxe5 {[%clk 0:00:10]} 37. fxe5 {[%clk 0:00:48]}  Nc6 {[%clk 0:00:10]} 38. Nf3 {[%clk 0:00:48]}  Nb6 {[%clk 0:00:10]} 39. Kf2 {[%clk 0:00:48]}  Kf7 {[%clk 0:00:09]} 40. Ke3 {[%clk 0:00:49]}  Ke7 {[%clk 0:00:08]} 41. Nd4 {[%clk 0:00:49]}  Nxd4 {[%clk 0:00:08]} 42. Kxd4 {[%clk 0:00:50]}  Kf7 {[%clk 0:00:07]} 43. b4 {[%clk 0:00:49]}  Ke7 {[%clk 0:00:06]} 44. b5 {[%clk 0:00:49]}  Nc4 {[%clk 0:00:06]} 45. Kc5 {[%clk 0:00:49]}  Kd7 {[%clk 0:00:04]} 46. b6 {[%clk 0:00:48]}  Na5 {[%clk 0:00:02]} 47. Kb5 {[%clk 0:00:48]}  Nb7 {[%clk 0:00:02]} 48. Ka6 {[%clk 0:00:46]}  Nd8 {[%clk 0:00:02]} 49. Ka7 {[%clk 0:00:45]}  Nc6+ {[%clk 0:00:02]} 50. Ka8 {[%clk 0:00:45]}  d4 {[%clk 0:00:02]} 51. b7 {[%clk 0:00:45]}  Kc7 {[%clk 0:00:02]} 52. Nc5 {[%clk 0:00:44]}  Nb8 {[%clk 0:00:00]} 53. Nxe6+ {[%clk 0:00:45]} 1-0

[Event "January 2 Early 2024"]
[Site "https://www.chess.com"]
[Date "2024.01.02"]
[Round "2"]
[White "Adelman, Charles"]
[Black "Rozman, Levy"]
[Result "0-1"]
[Board "123"]
[TimeControl "180+1"]
[WhiteFideId "2003597"]
[BlackFideId "2039877"]
[WhiteElo "2181"]
[BlackElo "2685"]
[WhiteTeam "USA"]
[BlackTeam "USA"]
[WhiteClock "0:00:36"]
[BlackClock "0:00:37"]

1. Nf3 {[%clk 0:03:00]}  g6 {[%clk 0:02:54]} 2. c4 {[%clk 0:03:00]}  Bg7 {[%clk 0:02:47]} 3. g3 {[%clk 0:03:01]}  d6 {[%clk 0:02:48]} 4. Bg2 {[%clk 0:03:01]}  Nc6 {[%clk 0:02:48]} 5. Nc3 {[%clk 0:03:01]}  Bd7 {[%clk 0:02:49]} 6. Rb1 {[%clk 0:02:54]}  a5 {[%clk 0:02:48]} 7. a3 {[%clk 0:02:54]}  Qc8 {[%clk 0:02:49]} 8. h3 {[%clk 0:02:54]}  Nh6 {[%clk 0:02:44]} 9. b4 {[%clk 0:02:53]}  axb4 {[%clk 0:02:44]} 10. axb4 {[%clk 0:02:54]}  O-O {[%clk 0:02:45]} 11. b5 {[%clk 0:02:54]}  Na5 {[%clk 0:02:45]} 12. Rb4 {[%clk 0:02:41]}  Nf5 {[%clk 0:02:35]} 13. O-O {[%clk 0:02:29]}  Nd4 {[%clk 0:02:33]} 14. Kh2 {[%clk 0:02:28]}  Nxf3+ {[%clk 0:02:29]} 15. exf3 {[%clk 0:02:26]}  c5 {[%clk 0:02:19]} 16. bxc6 {[%clk 0:02:25]}  bxc6 {[%clk 0:02:19]} 17. Qe2 {[%clk 0:02:21]}  Re8 {[%clk 0:02:16]} 18. Rb1 {[%clk 0:02:14]}  Be6 {[%clk 0:02:13]} 19. Re1 {[%clk 0:02:00]}  Bxc4 {[%clk 0:02:09]} 20. Qe3 {[%clk 0:01:58]}  Be6 {[%clk 0:02:08]} 21. Ne4 {[%clk 0:01:50]}  Nc4 {[%clk 0:02:07]} 22. Qe2 {[%clk 0:01:48]}  h6 {[%clk 0:02:05]} 23. f4 {[%clk 0:01:44]}  Ra2 {[%clk 0:01:49]} 24. Qd1 {[%clk 0:01:28]}  Bd5 {[%clk 0:01:45]} 25. Rf1 {[%clk 0:01:23]}  Qf5 {[%clk 0:01:37]} 26. d3 {[%clk 0:01:22]}  Na3 {[%clk 0:01:30]} 27. g4 {[%clk 0:01:19]}  Qd7 {[%clk 0:01:27]} 28. Bd2 {[%clk 0:01:13]}  Nxb1 {[%clk 0:01:24]} 29. Qxb1 {[%clk 0:01:11]}  Rb2 {[%clk 0:01:18]} 30. Qc1 {[%clk 0:01:08]}  Reb8 {[%clk 0:01:15]} 31. Bc3 {[%clk 0:01:06]}  Rb1 {[%clk 0:01:06]} 32. Qd2 {[%clk 0:00:58]}  Rxf1 {[%clk 0:01:05]} 33. Bxf1 {[%clk 0:00:59]}  Bxe4 {[%clk 0:01:02]} 34. dxe4 {[%clk 0:00:57]}  Bxc3 {[%clk 0:01:01]} 35. Qxc3 {[%clk 0:00:57]}  Qe6 {[%clk 0:00:53]} 36. Qxc6 {[%clk 0:00:50]}  Qf6 {[%clk 0:00:53]} 37. Kg3 {[%clk 0:00:47]}  g5 {[%clk 0:00:50]} 38. Qc1 {[%clk 0:00:44]}  Rb3+ {[%clk 0:00:45]} 39. f3 {[%clk 0:00:44]}  Kg7 {[%clk 0:00:37]} 40. Bc4 {[%clk 0:00:36]}  Rc3 {[%clk 0:00:37]} 0-1

[Event "January 2 Early 2024"]
[Site "https://www.chess.com"]
[Date "2024.01.02"]
[Round "2"]
[White "Csonka, Balazs"]
[Black "Ghosh, Chanchal Kumer"]
[Result "1-0"]
[Board "126"]
[TimeControl "180+1"]
[WhiteFideId "742910"]
[BlackFideId "10201858"]
[WhiteElo "2678"]
[BlackElo "2038"]
[WhiteTeam "HUN"]
[BlackTeam "BAN"]
[WhiteClock "0:00:02"]
[BlackClock "0:00:00"]

1. c4 {[%clk 0:03:00]}  e5 {[%clk 0:02:59]} 2. g3 {[%clk 0:02:58]}  Bc5 {[%clk 0:02:59]} 3. Bg2 {[%clk 0:02:58]}  Nc6 {[%clk 0:02:58]} 4. Nc3 {[%clk 0:02:57]}  a6 {[%clk 0:02:57]} 5. e3 {[%clk 0:02:57]}  d6 {[%clk 0:02:57]} 6. Nge2 {[%clk 0:02:54]}  Ba7 {[%clk 0:02:56]} 7. d4 {[%clk 0:02:49]}  exd4 {[%clk 0:02:54]} 8. exd4 {[%clk 0:02:49]}  Nge7 {[%clk 0:02:53]} 9. O-O {[%clk 0:02:34]}  h5 {[%clk 0:02:46]} 10. Bg5 {[%clk 0:02:22]}  f6 {[%clk 0:02:45]} 11. Be3 {[%clk 0:02:22]}  h4 {[%clk 0:02:39]} 12. Nf4 {[%clk 0:02:07]}  hxg3 {[%clk 0:02:25]} 13. hxg3 {[%clk 0:02:05]}  Bf5 {[%clk 0:02:19]} 14. Re1 {[%clk 0:01:56]}  Qd7 {[%clk 0:02:17]} 15. Ncd5 {[%clk 0:00:56]}  Kf7 {[%clk 0:01:52]} 16. Nxe7 {[%clk 0:00:33]}  Nxe7 {[%clk 0:01:52]} 17. Qb3 {[%clk 0:00:32]}  g5 {[%clk 0:01:36]} 18. c5+ {[%clk 0:00:31]}  Kg7 {[%clk 0:01:33]} 19. Nd5 {[%clk 0:00:28]}  Nxd5 {[%clk 0:01:12]} 20. Qxd5 {[%clk 0:00:24]}  Rab8 {[%clk 0:00:53]} 21. Rac1 {[%clk 0:00:19]}  Be6 {[%clk 0:00:47]} 22. Qf3 {[%clk 0:00:15]}  c6 {[%clk 0:00:45]} 23. cxd6 {[%clk 0:00:09]}  Qxd6 {[%clk 0:00:46]} 24. Red1 {[%clk 0:00:07]}  Bd5 {[%clk 0:00:40]} 25. Qf5 {[%clk 0:00:07]}  Rbe8 {[%clk 0:00:34]} 26. Bxd5 {[%clk 0:00:07]}  Qxd5 {[%clk 0:00:14]} 27. Qxd5 {[%clk 0:00:06]}  cxd5 {[%clk 0:00:14]} 28. Rc7+ {[%clk 0:00:07]}  Kg6 {[%clk 0:00:11]} 29. Rxb7 {[%clk 0:00:07]}  Bb8 {[%clk 0:00:12]} 30. Kg2 {[%clk 0:00:07]}  Rh7 {[%clk 0:00:10]} 31. Rxh7 {[%clk 0:00:06]}  Kxh7 {[%clk 0:00:11]} 32. Rc1 {[%clk 0:00:07]}  Kg6 {[%clk 0:00:12]} 33. Rc6 {[%clk 0:00:06]}  a5 {[%clk 0:00:11]} 34. b3 {[%clk 0:00:06]}  Kf7 {[%clk 0:00:09]} 35. Rc5 {[%clk 0:00:06]}  Bd6 {[%clk 0:00:07]} 36. Rxd5 {[%clk 0:00:04]}  Ke6 {[%clk 0:00:07]} 37. Rxa5 {[%clk 0:00:04]}  Rc8 {[%clk 0:00:07]} 38. d5+ {[%clk 0:00:04]}  Kf5 {[%clk 0:00:05]} 39. Kf3 {[%clk 0:00:04]}  Rc2 {[%clk 0:00:05]} 40. g4+ {[%clk 0:00:04]}  Kg6 {[%clk 0:00:06]} 41. Ra6 {[%clk 0:00:04]}  Be5 {[%clk 0:00:07]} 42. a4 {[%clk 0:00:04]}  Rc3 {[%clk 0:00:07]} 43. Rb6 {[%clk 0:00:04]}  Rd3 {[%clk 0:00:07]} 44. Ke4 {[%clk 0:00:03]}  Rd1 {[%clk 0:00:06]} 45. a5 {[%clk 0:00:03]}  Rg1 {[%clk 0:00:07]} 46. Kf3 {[%clk 0:00:01]}  Ra1 {[%clk 0:00:07]} 47. a6 {[%clk 0:00:02]}  Kf7 {[%clk 0:00:06]} 48. Rc6 {[%clk 0:00:02]}  f5 {[%clk 0:00:06]} 49. gxf5 {[%clk 0:00:02]}  Ra2 {[%clk 0:00:06]} 50. a7 {[%clk 0:00:02]}  Bf6 {[%clk 0:00:00]} 51. Rc8 {[%clk 0:00:02]} 1-0

[Event "January 2 Early 2024"]
[Site "https://www.chess.com"]
[Date "2024.01.02"]
[Round "2"]
[White "Seletsky, Grigory"]
[Black "Mekhitarian, Krikor Sevag"]
[Result "0-1"]
[Board "131"]
[TimeControl "180+1"]
[WhiteFideId "14112191"]
[BlackFideId "2107660"]
[WhiteElo "2424"]
[BlackElo "2858"]
[WhiteTeam "UKR"]
[BlackTeam "BRA"]
[WhiteClock "0:00:38"]
[BlackClock "0:00:06"]

1. b3 {[%clk 0:02:58]}  b6 {[%clk 0:02:53]} 2. Bb2 {[%clk 0:02:58]}  Bb7 {[%clk 0:02:54]} 3. e3 {[%clk 0:02:57]}  Nf6 {[%clk 0:02:53]} 4. Nf3 {[%clk 0:02:58]}  g6 {[%clk 0:02:52]} 5. g3 {[%clk 0:02:58]}  Bg7 {[%clk 0:02:52]} 6. Bg2 {[%clk 0:02:59]}  O-O {[%clk 0:02:53]} 7. O-O {[%clk 0:03:00]}  c5 {[%clk 0:02:47]} 8. c4 {[%clk 0:03:00]}  d5 {[%clk 0:02:41]} 9. cxd5 {[%clk 0:02:58]}  Qxd5 {[%clk 0:02:41]} 10. Ne1 {[%clk 0:02:56]}  Qd7 {[%clk 0:02:40]} 11. Bxb7 {[%clk 0:02:52]}  Qxb7 {[%clk 0:02:41]} 12. Qf3 {[%clk 0:02:52]}  Nc6 {[%clk 0:02:33]} 13. Nc2 {[%clk 0:02:50]}  Rab8 {[%clk 0:02:27]} 14. Rd1 {[%clk 0:02:50]}  e5 {[%clk 0:01:53]} 15. d3 {[%clk 0:02:50]}  Rfd8 {[%clk 0:01:51]} 16. Nc3 {[%clk 0:02:47]}  Rbc8 {[%clk 0:01:41]} 17. Rac1 {[%clk 0:02:44]}  Qe7 {[%clk 0:01:40]} 18. Kg2 {[%clk 0:02:17]}  h5 {[%clk 0:01:40]} 19. h3 {[%clk 0:02:15]}  Rd7 {[%clk 0:01:32]} 20. Ne1 {[%clk 0:02:10]}  Nb4 {[%clk 0:01:22]} 21. a3 {[%clk 0:02:08]}  Nc6 {[%clk 0:01:22]} 22. Qe2 {[%clk 0:02:05]}  Rcd8 {[%clk 0:01:14]} 23. Qc2 {[%clk 0:02:03]}  Qe6 {[%clk 0:01:14]} 24. Ne4 {[%clk 0:02:00]}  Nxe4 {[%clk 0:01:06]} 25. dxe4 {[%clk 0:01:59]}  Bf8 {[%clk 0:00:59]} 26. Nf3 {[%clk 0:01:56]}  f6 {[%clk 0:00:59]} 27. Rxd7 {[%clk 0:01:37]}  Rxd7 {[%clk 0:00:59]} 28. Rd1 {[%clk 0:01:35]}  Rxd1 {[%clk 0:00:55]} 29. Qxd1 {[%clk 0:01:35]}  Na5 {[%clk 0:00:55]} 30. Nd2 {[%clk 0:01:33]}  b5 {[%clk 0:00:52]} 31. Qc2 {[%clk 0:01:26]}  a6 {[%clk 0:00:49]} 32. Bc3 {[%clk 0:01:23]}  Nb7 {[%clk 0:00:46]} 33. Qd3 {[%clk 0:01:20]}  Kf7 {[%clk 0:00:45]} 34. Qd5 {[%clk 0:01:17]}  Qxd5 {[%clk 0:00:37]} 35. exd5 {[%clk 0:01:16]}  Nd6 {[%clk 0:00:37]} 36. e4 {[%clk 0:01:15]}  Bh6 {[%clk 0:00:37]} 37. f3 {[%clk 0:01:15]}  Bxd2 {[%clk 0:00:19]} 38. Bxd2 {[%clk 0:01:14]}  c4 {[%clk 0:00:19]} 39. bxc4 {[%clk 0:01:08]}  Nxc4 {[%clk 0:00:20]} 40. Bb4 {[%clk 0:01:03]}  f5 {[%clk 0:00:19]} 41. Kf2 {[%clk 0:01:02]}  Kf6 {[%clk 0:00:17]} 42. Ke2 {[%clk 0:01:01]}  g5 {[%clk 0:00:10]} 43. g4 {[%clk 0:00:59]}  hxg4 {[%clk 0:00:09]} 44. hxg4 {[%clk 0:00:59]}  f4 {[%clk 0:00:07]} 45. Kd3 {[%clk 0:00:58]}  Kf7 {[%clk 0:00:07]} 46. Kc3 {[%clk 0:00:57]}  Ke8 {[%clk 0:00:04]} 47. Bc5 {[%clk 0:00:57]}  Kd7 {[%clk 0:00:05]} 48. Kd3 {[%clk 0:00:54]}  Nb2+ {[%clk 0:00:04]} 49. Kc3 {[%clk 0:00:54]}  Nc4 {[%clk 0:00:03]} 50. Kb4 {[%clk 0:00:53]}  Nd2 {[%clk 0:00:03]} 51. Ka5 {[%clk 0:00:52]}  Nxf3 {[%clk 0:00:03]} 52. Kxa6 {[%clk 0:00:52]}  Nd2 {[%clk 0:00:03]} 53. Kxb5 {[%clk 0:00:50]}  Nxe4 {[%clk 0:00:04]} 54. Bb6 {[%clk 0:00:50]}  f3 {[%clk 0:00:04]} 55. a4 {[%clk 0:00:49]}  Nc3+ {[%clk 0:00:04]} 56. Kc4 {[%clk 0:00:46]}  Nxa4 {[%clk 0:00:04]} 57. Be3 {[%clk 0:00:45]}  Nb2+ {[%clk 0:00:04]} 58. Kc3 {[%clk 0:00:42]}  Nd1+ {[%clk 0:00:05]} 59. Kd2 {[%clk 0:00:42]}  Nxe3 {[%clk 0:00:05]} 60. Kxe3 {[%clk 0:00:38]}  e4 {[%clk 0:00:06]} 0-1